[Event "NED-ch Women 2021"]
[Site "Hoogeveen"]
[Date "2021.10.17"]
[Round "1.1"]
[White "Roebers, Eline"]
[Black "Van Foreest, Machteld"]
[Result "1-0"]
[ECO "B01"]
[WhiteElo "2283"]
[BlackElo "2132"]
[Annotator "ChessBase"]
[PlyCount "161"]
[EventDate "2021.10.17"]
[EventType "tourn"]
[EventCountry "NED"]
[SourceTitle "playchess.com"]
[Source "ChessBase"]
[SourceQuality "1"]
[TimeControl "40/5400+30:1800+30"]

1. e4 {[%emt 0:00:30]} d5 {[%emt 0:00:06]} 2. exd5 {[%emt 0:00:00]} Qxd5 {[%emt 0:00:03]} 3. Nc3 {[%emt 0:00:00]} Qd6 {[%emt 0:00:18]} 4. Nf3 {[%emt 0:00:43]} Bg4 {[%emt 0:00:05]} 5. d4 {[%emt 0:02:34]} Nf6 {[%emt 0:00:58]} 6. h3 {[%emt 0:06:19]} Bxf3 {[%emt 0:06:15]} 7. Qxf3 {[%emt 0:00:09]} c6 {[%emt 0:00:04]} 8. Be3 {[%emt 0:01:04]} e6 {[%emt 0:02:01]} 9. O-O-O {[%emt 0:00:42]} Be7 {[%emt 0:08:23]} 10. g4 {[%emt 0:04:38]} Nbd7 {[%emt 0:01:44]} 11. Kb1 {[%emt 0:12:34]} h6 {[%emt 0:06:42]} 12. h4 {[%emt 0:04:35]} O-O-O {[%emt 0:05:24]} 13. Bh3 {[%emt 0:02:21]} Rhf8 {[%emt 0:08:50]} 14. Bf4 {[%emt 0:03:53]} Qb4 {[%emt 0:02:34]} 15. g5 {[%emt 0:00:09]} hxg5 {[%emt 0:03:51]} 16. hxg5 {[%emt 0:00:06]} Ne8 {[%emt 0:12:17]} 17. a3 {[%emt 0:10:13]} Qb6 {[%emt 0:07:24]} 18. Ne4 {[%emt 0:12:53]} f5 {[%emt 0:06:42]} 19. gxf6 {[%emt 0:01:00]} Nexf6 {[%emt 0:00:05]} 20. Nd6+ {[%emt 0:06:06]} Bxd6 {[%emt 0:00:02]} 21. Bxd6 {[%emt 0:00:06]} Rfe8 {[%emt 0:00:48]} 22. Qe3 {[%emt 0:04:53]} Nd5 {[%emt 0:01:34]} 23. Qg3 {[%emt 0:00:40]} N7f6 {[%emt 0:03:00]} 24. Rhe1 {[%emt 0:04:18]} Nc3+ {[%emt 0:04:34]} 25. Qxc3 {[%emt 0:00:10]} Rxd6 {[%emt 0:00:02]} 26. Re5 {[%emt 0:06:37]} Kb8 {[%emt 0:02:21]} 27. Qg3 {[%emt 0:00:21]} Qc7 {[%emt 0:00:32]} 28. c3 {[%emt 0:00:46]} Ka8 {[%emt 0:03:56]} 29. Rxe6 {[%emt 0:04:25]} Rexe6 {[%emt 0:00:08]} 30. Bxe6 {[%emt 0:00:06]} Qe7 {[%emt 0:03:51]} 31. Bf5 {[%emt 0:00:23]} Rd8 {[%emt 0:01:15]} 32. Rg1 {[%emt 0:00:50]} Qe2 {[%emt 0:00:55]} 33. Bd3 {[%emt 0:01:17]} Qe6 {[%emt 0:01:13]} 34. Qe3 {[%emt 0:02:07]} Qf7 {[%emt 0:00:26]} 35. Bg6 {[%emt 0:01:16]} Qf8 {[%emt 0:01:37]} 36. Re1 {[%emt 0:00:43]} Nd5 {[%emt 0:00:15]} 37. Qg5 {[%emt 0:02:02]} Rb8 {[%emt 0:00:46]} 38. Qg3 {[%emt 0:01:39]} Nf4 {[%emt 0:00:48]} 39. Bc2 {[%emt 0:00:54]} a6 {[%emt 0:00:17]} 40. Re5 {[%emt 0:00:19]} Nd5 {[%emt 0:01:19]} 41. Rg5 {[%emt 0:31:07]} Qe7 {[%emt 0:34:21]} 42. Rxg7 {[%emt 0:06:02]} Qe1+ {[%emt 0:00:00]} 43. Ka2 {[%emt 0:00:00]} Qe2 {[%emt 0:00:00]} 44. Bb3 {[%emt 0:00:00]} Ka7 {[%emt 0:00:00]} 45. c4 {[%emt 0:00:00]} Nb6 {[%emt 0:00:00]} 46. Qe3 {[%emt 0:00:00]} Re8 {[%emt 0:00:00]} 47. Qxe2 {[%emt 0:00:00]} Rxe2 {[%emt 0:00:00]} 48. c5 {[%emt 0:00:00]} Nc8 {[%emt 0:00:00]} 49. d5 {[%emt 0:00:00]} cxd5 {[%emt 0:00:00]} 50. Bxd5 {[%emt 0:00:00]} Ne7 {[%emt 0:00:00]} 51. Bc4 {[%emt 0:00:00]} Re5 {[%emt 0:00:00]} 52. b4 {[%emt 0:00:00]} Kb8 {[%emt 0:00:00]} 53. Rg3 {[%emt 0:00:00]} a5 {[%emt 0:00:00]} 54. Re3 {[%emt 0:00:00]} Rxe3 {[%emt 0:00:00]} 55. fxe3 {[%emt 0:00:00]} axb4 {[%emt 0:00:00]} 56. axb4 {[%emt 0:00:00]} b6 {[%emt 0:00:13]} 57. cxb6 {[%emt 0:00:00]} Kb7 {[%emt 0:00:05]} 58. Kb3 {[%emt 0:00:00]} Kxb6 {[%emt 0:00:06]} 59. Kc3 {[%emt 0:00:00]} Nc6 {[%emt 0:00:40]} 60. Be2 {[%emt 0:00:00]} Kc7 {[%emt 0:01:24]} 61. Bf3 {[%emt 0:00:00]} Ne5 {[%emt 0:00:21]} 62. Bd5 {[%emt 0:00:00]} Kd6 {[%emt 0:00:26]} 63. e4 {[%emt 0:00:00]} Nd7 {[%emt 0:00:20]} 64. Kc4 {[%emt 0:00:00]} Nb6+ {[%emt 0:04:54]} 65. Kb5 {[%emt 0:00:00]} Kc7 {[%emt 0:00:19]} 66. Ka6 {[%emt 0:00:00]} Nc8 {[%emt 0:00:32]} 67. b5 {[%emt 0:00:00]} Nb6 {[%emt 0:00:04]} 68. Ka5 {[%emt 0:00:00]} Nd7 {[%emt 0:00:09]} 69. Be6 {[%emt 0:00:00]} Nb6 {[%emt 0:00:03]} 70. e5 {[%emt 0:00:00]} Na8 {[%emt 0:00:08]} 71. Bb3 {[%emt 0:00:00]} Nb6 {[%emt 0:00:40]} 72. Bf7 {[%emt 0:00:31]} Kb7 {[%emt 0:01:38]} 73. Kb4 {[%emt 0:00:55]} Kc7 {[%emt 0:01:18]} 74. Bb3 {[%emt 0:00:21]} Nc8 {[%emt 0:01:07]} 75. Kc5 {[%emt 0:00:05]} Nb6 {[%emt 0:00:05]} 76. e6 {[%emt 0:00:19]} Nc8 {[%emt 0:00:04]} 77. Bd5 {[%emt 0:00:09]} Ne7 {[%emt 0:01:22]} 78. b6+ {[%emt 0:00:08]} Kd8 {[%emt 0:00:13]} 79. Be4 {[%emt 0:00:13]} Ng8 {[%emt 0:01:23]} 80. Kd6 {[%emt 0:16:19]} Nf6 {[%emt 0:00:09]} 81. b7 {[%emt 0:00:00]} 1-0

[Event "NED-ch Women 2021"]
[Site "Hoogeveen"]
[Date "2021.10.17"]
[Round "1.2"]
[White "Ratsma, Rosa"]
[Black "Keetman, Maaike"]
[Result "1/2-1/2"]
[ECO "C13"]
[WhiteElo "2297"]
[BlackElo "2145"]
[Annotator "ChessBase"]
[PlyCount "86"]
[EventDate "2021.10.17"]
[EventType "tourn"]
[EventCountry "NED"]
[SourceTitle "playchess.com"]
[Source "ChessBase"]
[SourceQuality "1"]
[TimeControl "40/5400+30:1800+30"]

1. e4 {[%emt 0:00:03]} e6 {[%emt 0:00:06]} 2. d4 {[%emt 0:00:07]} d5 {[%emt 0:00:07]} 3. Nc3 {[%emt 0:00:10]} Nf6 {[%emt 0:00:13]} 4. Bg5 {[%emt 0:00:13]} dxe4 {[%emt 0:00:20]} 5. Nxe4 {[%emt 0:00:10]} Be7 {[%emt 0:00:09]} 6. Nxf6+ {[%emt 0:00:36]} Bxf6 {[%emt 0:00:14]} 7. Bxf6 {[%emt 0:00:21]} Qxf6 {[%emt 0:00:08]} 8. Nf3 {[%emt 0:00:28]} c5 {[%emt 0:07:15]} 9. Bd3 {[%emt 0:16:25]} Nc6 {[%emt 0:04:30]} 10. dxc5 {[%emt 0:06:54]} Qxb2 {[%emt 0:18:25]} 11. O-O {[%emt 0:01:05]} O-O {[%emt 0:01:27]} 12. Qe1 {[%emt 0:09:33]} h6 {[%emt 0:43:22]} 13. Qe3 {[%emt 0:08:35]} Rd8 {[%emt 0:03:07]} 14. c3 {[%emt 0:12:19]} Ne7 {[%emt 0:02:40]} 15. Rfb1 {[%emt 0:06:15]} Qa3 {[%emt 0:00:10]} 16. Rb3 {[%emt 0:00:46]} Qa5 {[%emt 0:01:01]} 17. c4 {[%emt 0:03:29]} Nf5 {[%emt 0:06:27]} 18. Bxf5 {[%emt 0:03:14]} exf5 {[%emt 0:00:04]} 19. h3 {[%emt 0:08:25]} Qc7 {[%emt 0:03:42]} 20. Qe5 {[%emt 0:05:52]} Qxe5 {[%emt 0:02:50]} 21. Nxe5 {[%emt 0:00:07]} f6 {[%emt 0:00:07]} 22. Nf3 {[%emt 0:03:27]} a5 {[%emt 0:02:22]} 23. Re1 {[%emt 0:03:21]} Ra6 {[%emt 0:00:58]} 24. h4 {[%emt 0:02:52]} Kf7 {[%emt 0:01:17]} 25. h5 {[%emt 0:00:46]} a4 {[%emt 0:00:51]} 26. Rb5 {[%emt 0:01:16]} Rc6 {[%emt 0:00:46]} 27. Re3 {[%emt 0:03:24]} Rc7 {[%emt 0:00:19]} 28. Ra5 {[%emt 0:01:07]} Rd1+ {[%emt 0:00:56]} 29. Kh2 {[%emt 0:01:19]} Bd7 {[%emt 0:00:02]} 30. Nh4 {[%emt 0:00:53]} Be6 {[%emt 0:00:48]} 31. Ng6 {[%emt 0:00:59]} Rd8 {[%emt 0:00:28]} 32. Rxa4 {[%emt 0:00:50]} Rxc5 {[%emt 0:00:13]} 33. Ra7 {[%emt 0:00:41]} Rc7 {[%emt 0:00:18]} 34. Rb3 {[%emt 0:00:33]} Rb8 {[%emt 0:00:52]} 35. Rb5 {[%emt 0:00:38]} Bxc4 {[%emt 0:00:21]} 36. Rxf5 {[%emt 0:00:13]} Bd3 {[%emt 0:00:50]} 37. Rf3 {[%emt 0:00:45]} Bxg6 {[%emt 0:00:25]} 38. hxg6+ {[%emt 0:00:05]} Kxg6 {[%emt 0:00:02]} 39. Rb3 {[%emt 0:00:44]} Rc2 {[%emt 0:00:57]} 40. Kg1 {[%emt 0:00:42]} Rc1+ {[%emt 0:00:32]} 41. Kh2 {[%emt 0:30:07]} Rc2 {[%emt 0:30:44]} 42. Kg1 {[%emt 0:00:25]} Rc1+ {[%emt 0:00:00]} 43. Kh2 {[%emt 0:00:00]} Rc2 {[%emt 0:00:00]} 1/2-1/2

[Event "NED-ch Women 2021"]
[Site "Hoogeveen"]
[Date "2021.10.17"]
[Round "1.3"]
[White "Kazarian, Anna-Maja"]
[Black "Lanchava, Tea"]
[Result "1-0"]
[ECO "B09"]
[WhiteElo "2125"]
[BlackElo "2214"]
[Annotator "ChessBase"]
[PlyCount "111"]
[EventDate "2021.10.17"]
[EventType "tourn"]
[EventCountry "NED"]
[SourceTitle "playchess.com"]
[Source "ChessBase"]
[SourceQuality "1"]
[TimeControl "40/5400+30:1800+30"]

1. e4 {[%emt 0:00:03]} g6 {[%emt 0:00:26]} 2. d4 {[%emt 0:00:13]} Bg7 {[%emt 0:00:22]} 3. Nc3 {[%emt 0:00:16]} d6 {[%emt 0:00:43]} 4. f4 {[%emt 0:02:39]} Nf6 {[%emt 0:01:31]} 5. Nf3 {[%emt 0:03:54]} O-O {[%emt 0:00:26]} 6. Bd3 {[%emt 0:01:25]} c5 {[%emt 0:00:46]} 7. dxc5 {[%emt 0:10:15]} dxc5 {[%emt 0:05:27]} 8. e5 {[%emt 0:02:07]} Nd5 {[%emt 0:04:01]} 9. Nxd5 {[%emt 0:02:21]} Qxd5 {[%emt 0:00:10]} 10. Qe2 {[%emt 0:01:30]} Bf5 {[%emt 0:08:57]} 11. Bxf5 {[%emt 0:03:30]} gxf5 {[%emt 0:00:08]} 12. O-O {[%emt 0:01:26]} Nc6 {[%emt 0:06:00]} 13. Be3 {[%emt 0:20:11]} f6 {[%emt 0:14:31]} 14. Rad1 {[%emt 0:12:36]} Qe4 {[%emt 0:06:38]} 15. Nd2 {[%emt 0:10:44]} Qxc2 {[%emt 0:08:19]} 16. Rc1 {[%emt 0:00:47]} Qa4 {[%emt 0:00:37]} 17. Bxc5 {[%emt 0:09:19]} fxe5 {[%emt 0:03:06]} 18. fxe5 {[%emt 0:05:00]} Qxa2 {[%emt 0:10:35]} 19. Nf3 {[%emt 0:02:11]} Rac8 {[%emt 0:11:24]} 20. Kh1 {[%emt 0:08:11]} Qd5 {[%emt 0:05:16]} 21. e6 {[%emt 0:01:25]} Qe4 {[%emt 0:03:00]} 22. Qb5 {[%emt 0:00:52]} b6 {[%emt 0:02:30]} 23. Ba3 {[%emt 0:00:23]} Qxe6 {[%emt 0:03:24]} 24. Ng5 {[%emt 0:00:05]} Qg6 {[%emt 0:01:00]} 25. Qd5+ {[%emt 0:00:07]} Kh8 {[%emt 0:01:50]} 26. Ne6 {[%emt 0:00:04]} Ne5 {[%emt 0:01:29]} 27. Nxf8 {[%emt 0:00:51]} Rxf8 {[%emt 0:00:04]} 28. Bxe7 {[%emt 0:01:01]} Rg8 {[%emt 0:00:36]} 29. b4 {[%emt 0:00:57]} Qh6 {[%emt 0:00:14]} 30. Bd6 {[%emt 0:00:22]} Ng4 {[%emt 0:00:33]} 31. Bf4 {[%emt 0:00:25]} Qh5 {[%emt 0:00:49]} 32. h3 {[%emt 0:00:44]} Nf6 {[%emt 0:00:06]} 33. Qf3 {[%emt 0:00:11]} Qg6 {[%emt 0:00:12]} 34. Rc6 {[%emt 0:00:34]} Qe8 {[%emt 0:00:07]} 35. Rc7 {[%emt 0:00:41]} a6 {[%emt 0:00:27]} 36. Qb7 {[%emt 0:00:34]} Qe2 {[%emt 0:00:14]} 37. Rg1 {[%emt 0:00:21]} Nh5 {[%emt 0:00:27]} 38. Bh2 {[%emt 0:00:34]} f4 {[%emt 0:01:03]} 39. Rc8 {[%emt 0:00:38]} Qe6 {[%emt 0:01:42]} 40. Rxg8+ {[%emt 0:00:11]} Kxg8 {[%emt 0:00:21]} 41. Qb8+ {[%emt 0:30:33]} Bf8 {[%emt 0:30:26]} 42. Bxf4 {[%emt 0:00:31]} Nf6 {[%emt 0:00:00]} 43. Bh6 {[%emt 0:00:00]} Nd7 {[%emt 0:00:00]} 44. Qg3+ {[%emt 0:00:00]} Qg6 {[%emt 0:00:00]} 45. Qb3+ {[%emt 0:00:00]} Kh8 {[%emt 0:00:00]} 46. Qc3+ {[%emt 0:00:00]} Kg8 {[%emt 0:00:00]} 47. Qc4+ {[%emt 0:00:00]} Kh8 {[%emt 0:00:00]} 48. Bxf8 {[%emt 0:00:00]} Nxf8 {[%emt 0:00:00]} 49. Rf1 {[%emt 0:00:00]} Kg7 {[%emt 0:00:00]} 50. Qxa6 {[%emt 0:00:00]} Qd6 {[%emt 0:00:14]} 51. Qa1+ {[%emt 0:00:00]} Kg6 {[%emt 0:01:05]} 52. Qh8 {[%emt 0:00:00]} Nd7 {[%emt 0:00:52]} 53. Qg8+ {[%emt 0:00:00]} Kh6 {[%emt 0:00:07]} 54. Rf7 {[%emt 0:00:00]} Qd1+ {[%emt 0:01:21]} 55. Kh2 {[%emt 0:00:00]} Qd6+ {[%emt 0:02:19]} 56. Qg3 {[%emt 0:00:00]} 1-0

[Event "NED-ch Women 2021"]
[Site "Hoogeveen"]
[Date "2021.10.17"]
[Round "1.4"]
[White "Haast, Anne"]
[Black "Peng, Zhaoqin"]
[Result "1/2-1/2"]
[ECO "C18"]
[WhiteElo "2310"]
[BlackElo "2359"]
[Annotator "ChessBase"]
[PlyCount "184"]
[EventDate "2021.10.17"]
[EventType "tourn"]
[EventCountry "NED"]
[SourceTitle "playchess.com"]
[Source "ChessBase"]
[SourceQuality "1"]
[TimeControl "40/5400+30:1800+30"]

1. e4 {[%emt 0:00:04]} e6 {[%emt 0:00:22]} 2. d4 {[%emt 0:04:55]} d5 {[%emt 0:00:07]} 3. Nc3 {[%emt 0:00:46]} Bb4 {[%emt 0:00:17]} 4. e5 {[%emt 0:03:04]} c5 {[%emt 0:00:29]} 5. a3 {[%emt 0:01:22]} Bxc3+ {[%emt 0:00:10]} 6. bxc3 {[%emt 0:00:11]} Qa5 {[%emt 0:00:20]} 7. Bd2 {[%emt 0:02:48]} Qa4 {[%emt 0:00:14]} 8. Nf3 {[%emt 0:04:43]} b6 {[%emt 0:04:05]} 9. Qb1 {[%emt 0:06:25]} Ba6 {[%emt 0:03:45]} 10. Bxa6 {[%emt 0:02:50]} Qxa6 {[%emt 0:14:58]} 11. a4 {[%emt 0:02:39]} Ne7 {[%emt 0:01:23]} 12. Qb5+ {[%emt 0:05:29]} Qxb5 {[%emt 0:03:48]} 13. axb5 {[%emt 0:04:39]} O-O {[%emt 0:17:17]} 14. Ra2 {[%emt 0:17:23]} cxd4 {[%emt 0:08:59]} 15. cxd4 {[%emt 0:00:58]} a5 {[%emt 0:00:15]} 16. Bb4 {[%emt 0:14:40]} Ra7 {[%emt 0:00:23]} 17. Kd2 {[%emt 0:00:57]} Rc8 {[%emt 0:00:49]} 18. g4 {[%emt 0:02:58]} Ng6 {[%emt 0:07:41]} 19. Bd6 {[%emt 0:01:29]} Nd7 {[%emt 0:06:33]} 20. h4 {[%emt 0:01:10]} f6 {[%emt 0:01:39]} 21. h5 {[%emt 0:02:59]} Nh8 {[%emt 0:00:15]} 22. Re1 {[%emt 0:14:36]} Nf7 {[%emt 0:01:11]} 23. c3 {[%emt 0:02:03]} Nxd6 {[%emt 0:04:12]} 24. exd6 {[%emt 0:00:01]} Nf8 {[%emt 0:00:07]} 25. g5 {[%emt 0:01:07]} Rd7 {[%emt 0:04:47]} 26. h6 {[%emt 0:00:43]} fxg5 {[%emt 0:02:36]} 27. hxg7 {[%emt 0:00:56]} Kxg7 {[%emt 0:01:10]} 28. Nxg5 {[%emt 0:00:43]} Rxd6 {[%emt 0:00:16]} 29. Rh1 {[%emt 0:01:01]} h6 {[%emt 0:12:20]} 30. Nf3 {[%emt 0:00:01]} Ng6 {[%emt 0:00:06]} 31. Raa1 {[%emt 0:00:11]} Rf8 {[%emt 0:00:38]} 32. Ke3 {[%emt 0:00:44]} Ne7 {[%emt 0:03:37]} 33. Rag1+ {[%emt 0:01:02]} Kf7 {[%emt 0:00:08]} 34. Ne5+ {[%emt 0:00:38]} Ke8 {[%emt 0:00:02]} 35. f3 {[%emt 0:00:28]} Rd8 {[%emt 0:01:30]} 36. Kd3 {[%emt 0:00:19]} Rg8 {[%emt 0:00:55]} 37. Re1 {[%emt 0:00:49]} Nf5 {[%emt 0:00:53]} 38. Ng4 {[%emt 0:00:15]} Rg6 {[%emt 0:00:14]} 39. Rh5 {[%emt 0:00:43]} Kf8 {[%emt 0:00:35]} 40. Re5 {[%emt 0:00:56]} Kg7 {[%emt 0:00:33]} 41. Re1 {[%emt 0:05:35]} Rc8 {[%emt 0:09:04]} 42. Rh3 {[%emt 0:00:41]} Nd6 {[%emt 0:03:59]} 43. Rxh6 {[%emt 0:10:38]} Rxh6 {[%emt 0:00:17]} 44. Nxh6 {[%emt 0:00:04]} Nxb5 {[%emt 0:01:41]} 45. Rxe6 {[%emt 0:00:22]} Rxc3+ {[%emt 0:00:07]} 46. Kd2 {[%emt 0:00:08]} Rxf3 {[%emt 0:01:31]} 47. Rxb6 {[%emt 0:00:37]} Nxd4 {[%emt 0:00:46]} 48. Ng4 {[%emt 0:00:26]} Ra3 {[%emt 0:05:18]} 49. Ne3 {[%emt 0:05:49]} Nf3+ {[%emt 0:03:38]} 50. Ke2 {[%emt 0:00:23]} Ng1+ {[%emt 0:02:18]} 51. Kd2 {[%emt 0:01:15]} Nf3+ {[%emt 0:01:28]} 52. Ke2 {[%emt 0:00:05]} d4 {[%emt 0:01:19]} 53. Nc4 {[%emt 0:00:45]} Rc3 {[%emt 0:01:01]} 54. Nxa5 {[%emt 0:00:44]} Ne5 {[%emt 0:00:59]} 55. Nb3 {[%emt 0:03:41]} d3+ {[%emt 0:01:21]} 56. Kd1 {[%emt 0:00:34]} Nc4 {[%emt 0:01:51]} 57. Rb7+ {[%emt 0:00:20]} Kg6 {[%emt 0:00:31]} 58. Nc1 {[%emt 0:01:13]} d2 {[%emt 0:01:21]} 59. Nb3 {[%emt 0:00:27]} Rd3 {[%emt 0:00:22]} 60. Nxd2 {[%emt 0:00:36]} Rxd2+ {[%emt 0:00:06]} 61. Kc1 {[%emt 0:00:37]} Rh2 {[%emt 0:00:36]} 62. Rc7 {[%emt 0:00:30]} Ne5 {[%emt 0:00:22]} 63. Rc8 {[%emt 0:00:46]} Kf5 {[%emt 0:02:25]} 64. Kb1 {[%emt 0:00:19]} Ke4 {[%emt 0:00:00]} 65. Rd8 {[%emt 0:00:32]} Nc6 {[%emt 0:00:00]} 66. Rg8 {[%emt 0:00:52]} Nd4 {[%emt 0:00:00]} 67. Rg4+ {[%emt 0:01:31]} Kd3 {[%emt 0:00:42]} 68. Rg3+ {[%emt 0:00:07]} Kc4 {[%emt 0:00:03]} 69. Rg4 {[%emt 0:00:31]} Rf2 {[%emt 0:00:45]} 70. Rh4 {[%emt 0:01:29]} Kb3 {[%emt 0:00:55]} 71. Kc1 {[%emt 0:02:10]} Kc3 {[%emt 0:00:46]} 72. Kb1 {[%emt 0:00:41]} Rf1+ {[%emt 0:00:34]} 73. Ka2 {[%emt 0:00:05]} Rf2+ {[%emt 0:00:14]} 74. Ka3 {[%emt 0:01:09]} Rf8 {[%emt 0:00:46]} 75. Ka2 {[%emt 0:00:41]} Ra8+ {[%emt 0:00:24]} 76. Kb1 {[%emt 0:00:05]} Rb8+ {[%emt 0:00:33]} 77. Kc1 {[%emt 0:00:24]} Rg8 {[%emt 0:00:45]} 78. Rh3+ {[%emt 0:00:24]} Kc4 {[%emt 0:00:08]} 79. Rh4 {[%emt 0:00:56]} Rg2 {[%emt 0:00:34]} 80. Kb1 {[%emt 0:00:25]} Rf2 {[%emt 0:00:31]} 81. Rh8 {[%emt 0:00:34]} Nb5 {[%emt 0:00:28]} 82. Kc1 {[%emt 0:00:31]} Nd4 {[%emt 0:00:41]} 83. Kb1 {[%emt 0:00:22]} Kc3 {[%emt 0:00:25]} 84. Rc8+ {[%emt 0:00:18]} Kd3 {[%emt 0:00:31]} 85. Rh8 {[%emt 0:00:58]} Nb5 {[%emt 0:00:37]} 86. Rh3+ {[%emt 0:00:30]} Kc4 {[%emt 0:00:04]} 87. Kc1 {[%emt 0:00:28]} Rg2 {[%emt 0:00:24]} 88. Rh8 {[%emt 0:01:01]} Nc3 {[%emt 0:00:59]} 89. Rc8+ {[%emt 0:00:42]} Kd4 {[%emt 0:00:20]} 90. Rc4+ {[%emt 0:00:22]} Kd3 {[%emt 0:00:19]} 91. Rd4+ {[%emt 0:00:13]} Ke3 {[%emt 0:00:15]} 92. Rd3+ {[%emt 0:00:12]} Kxd3 {[%emt 0:01:47]} 1/2-1/2

[Event "NED-ch Women 2021"]
[Site "Hoogeveen"]
[Date "2021.10.21"]
[Round "5.1"]
[White "Kazarian, Anna-Maja"]
[Black "Van Foreest, Machteld"]
[Result "1/2-1/2"]
[ECO "A29"]
[WhiteElo "2125"]
[BlackElo "2132"]
[Annotator "NA"]
[PlyCount "127"]
[EventDate "2021.10.17"]
[EventType "tourn"]
[EventCountry "NED"]
[SourceTitle "playchess.com"]
[Source "ChessBase"]
[SourceQuality "1"]
[TimeControl "40/5400+30:1800+30"]

1. c4 {[%emt 0:00:03]} e5 {[%emt 0:00:50]} 2. g3 {[%emt 0:00:14]} Nf6 {[%emt 0:02:12]} 3. Bg2 {[%emt 0:00:08]} d5 {[%emt 0:00:47]} 4. cxd5 {[%emt 0:00:06]} Nxd5 {[%emt 0:00:06]} 5. Nc3 {[%emt 0:00:09]} Nb6 {[%emt 0:00:11]} 6. Nf3 {[%emt 0:00:25]} Nc6 {[%emt 0:00:05]} 7. O-O {[%emt 0:00:31]} Be7 {[%emt 0:00:14]} 8. a3 {[%emt 0:01:16]} O-O {[%emt 0:03:44]} 9. b4 {[%emt 0:02:23]} a6 {[%emt 0:00:45]} 10. d3 {[%emt 0:00:58]} Be6 {[%emt 0:00:31]} 11. Be3 {[%emt 0:05:07]} Nd5 {[%emt 0:04:40]} 12. Nxd5 {[%emt 0:07:12]} Bxd5 {[%emt 0:00:38]} 13. Qc2 {[%emt 0:03:13]} Qd7 {[%emt 0:02:23]} 14. Bc5 {[%emt 0:06:03]} Bxc5 {[%emt 0:07:24]} 15. Qxc5 {[%emt 0:00:13]} Rfe8 {[%emt 0:11:08]} 16. Rfe1 {[%emt 0:20:05]} Bxf3 {[%emt 0:09:13]} 17. Bxf3 {[%emt 0:00:48]} Nd4 {[%emt 0:22:02]} ({Black should try} 17... Nd8 $1 $14) 18. Bxb7 {[%emt 0:28:33]} Rab8 {[%emt 0:03:22]} 19. Bg2 {[%emt 0:01:32]} Nb3 {[%emt 0:01:20]} 20. Qc3 {[%emt 0:01:40]} Nxa1 {[%emt 0:04:55]} 21. Bc6 {[%emt 0:00:23]} Qd4 {[%emt 0:09:37]} 22. Qxd4 {[%emt 0:00:09]} exd4 {[%emt 0:00:01]} 23. Bxe8 {[%emt 0:00:10]} Nc2 {[%emt 0:00:06]} 24. Rc1 {[%emt 0:00:06]} Nxa3 {[%emt 0:00:06]} 25. Bd7 {[%emt 0:01:08]} Rxb4 {[%emt 0:01:47]} 26. Rxc7 {[%emt 0:00:32]} Kf8 {[%emt 0:00:50]} 27. Ra7 {[%emt 0:02:17]} Nb1 {[%emt 0:06:54]} 28. Rxa6 {[%emt 0:03:42]} Nc3 {[%emt 0:00:09]} 29. Bg4 {[%emt 0:00:46]} g6 {[%emt 0:00:47]} 30. h4 {[%emt 0:02:30]} h5 {[%emt 0:02:16]} 31. Bf3 {[%emt 0:00:09]} Ke7 {[%emt 0:00:04]} 32. Rc6 {[%emt 0:08:05]} Kd7 {[%emt 0:01:27]} 33. Rf6 {[%emt 0:03:34]} Ke7 {[%emt 0:00:06]} 34. Ra6 {[%emt 0:00:10]} Rb1+ {[%emt 0:02:08]} 35. Kg2 {[%emt 0:00:02]} Rb2 {[%emt 0:00:17]} 36. Rc6 {[%emt 0:00:24]} Nxe2 {[%emt 0:02:15]} 37. Bxe2 {[%emt 0:00:05]} Rxe2 {[%emt 0:00:04]} 38. Rc4 {[%emt 0:00:04]} Ra2 {[%emt 0:00:33]} 39. Rxd4 {[%emt 0:00:04]} f6 {[%emt 0:02:44]} 40. Kf3 {[%emt 0:00:29]} Ra5 {[%emt 0:00:32]} 41. Ke3 {[%emt 0:32:01]} g5 {[%emt 0:30:59]} 42. Rc4 {[%emt 0:00:00]} Ke6 {[%emt 0:00:00]} 43. Rc6+ {[%emt 0:00:00]} Kf5 {[%emt 0:00:00]} 44. f3 {[%emt 0:00:00]} Rb5 {[%emt 0:00:00]} 45. hxg5 {[%emt 0:00:00]} Kxg5 {[%emt 0:00:00]} 46. Rc8 {[%emt 0:00:00]} Re5+ {[%emt 0:00:00]} 47. Kd2 {[%emt 0:00:00]} Re6 {[%emt 0:00:00]} 48. d4 {[%emt 0:00:00]} Ra6 {[%emt 0:00:00]} 49. Rc2 {[%emt 0:06:19]} f5 {[%emt 0:00:12]} 50. Ke2 {[%emt 0:00:54]} Ra3 {[%emt 0:00:53]} 51. d5 {[%emt 0:00:31]} f4 {[%emt 0:03:01]} 52. d6 {[%emt 0:00:24]} Re3+ {[%emt 0:00:27]} 53. Kf2 {[%emt 0:00:25]} Rd3 {[%emt 0:00:02]} 54. Rc5+ {[%emt 0:00:37]} Kg6 {[%emt 0:00:26]} 55. gxf4 {[%emt 0:00:32]} Rxd6 {[%emt 0:00:16]} 56. Kg3 {[%emt 0:00:24]} Rf6 {[%emt 0:00:52]} 57. Rg5+ {[%emt 0:00:39]} Kh6 {[%emt 0:00:02]} 58. Re5 {[%emt 0:00:06]} Kg6 {[%emt 0:01:01]} 59. Rd5 {[%emt 0:00:20]} Rf5 {[%emt 0:00:56]} 60. Rd8 {[%emt 0:00:44]} Kg7 {[%emt 0:00:29]} 61. Rd6 {[%emt 0:00:29]} Kh7 {[%emt 0:00:08]} 62. Re6 $11 {[%emt 0:00:41]} Kg7 {[%emt 0:00:20]} 63. Re5 {[%emt 0:00:03]} Kg6 {[%emt 0:00:10]} 64. Re6+ {[%emt 0:00:25]} 1/2-1/2